[Event "*** Titled Tuesday 3|2 Blitz (Early)"]
[Site "Chess.com"]
[Date "2017.01.03"]
[Round "3"]
[White "Mischuk_D"]
[Black "E-Shaposhnikov"]
[Result "0-1"]
[WhiteElo "2450"]
[BlackElo "2728"]
[TimeControl "180+2"]
[EndTime "11:33:58 PST"]
[Termination "E-Shaposhnikov won by checkmate"]

1. d4 {[%clk 0:03:02]} 1... Nf6 {[%clk 0:03:00.3]} 2. c4 {[%clk 0:03:02.3]} 2...
e6 {[%clk 0:03:01.2]} 3. Nc3 {[%clk 0:03:03.3]} 3... Bb4 {[%clk 0:03:01.6]} 4.
e3 {[%clk 0:03:04.5]} 4... c5 {[%clk 0:03:01]} 5. Ne2 {[%clk 0:03:04.6]} 5...
cxd4 {[%clk 0:02:59.7]} 6. exd4 {[%clk 0:03:04.9]} 6... d5 {[%clk 0:03:01.3]} 7.
a3 {[%clk 0:03:04.5]} 7... Be7 {[%clk 0:03:02.3]} 8. c5 {[%clk 0:03:05.3]} 8...
b6 {[%clk 0:03:03.1]} 9. b4 {[%clk 0:03:06]} 9... O-O {[%clk 0:03:02.9]} 10. Ng3
{[%clk 0:02:52.8]} 10... bxc5 {[%clk 0:02:49]} 11. dxc5 {[%clk 0:02:53.2]} 11...
e5 {[%clk 0:02:41]} 12. Be2 {[%clk 0:02:48.6]} 12... a5 {[%clk 0:02:37.8]} 13.
Rb1 {[%clk 0:02:47.2]} 13... axb4 {[%clk 0:02:38.9]} 14. axb4 {[%clk 0:02:49.1]}
14... Nc6 {[%clk 0:02:32.4]} 15. O-O {[%clk 0:02:46.7]} 15... Be6 {[%clk
0:02:20.1]} 16. Na4 {[%clk 0:02:40.3]} 16... Nd4 {[%clk 0:02:11.2]} 17. Nb6
{[%clk 0:02:37.7]} 17... Rb8 {[%clk 0:02:12.7]} 18. Bb2 {[%clk 0:02:31.7]} 18...
Ne4 {[%clk 0:02:04.6]} 19. Nxe4 {[%clk 0:02:13.2]} 19... dxe4 {[%clk 0:02:00.9]}
20. Re1 {[%clk 0:01:52.7]} 20... f5 {[%clk 0:01:56.8]} 21. Bf1 {[%clk
0:01:53.3]} 21... Rxb6 {[%clk 0:01:50.1]} 22. cxb6 {[%clk 0:01:53.4]} 22... Qxb6
{[%clk 0:01:52]} 23. b5 {[%clk 0:01:50.9]} 23... Bc5 {[%clk 0:01:49.3]} 24. Qd2
{[%clk 0:01:45.8]} 24... h6 {[%clk 0:01:40.3]} 25. Bc3 {[%clk 0:01:44.7]} 25...
Rd8 {[%clk 0:01:34.4]} 26. Qb2 {[%clk 0:01:41]} 26... Bd5 {[%clk 0:01:32.7]} 27.
Bb4 {[%clk 0:01:40.8]} 27... Bxb4 {[%clk 0:01:27.6]} 28. Qxb4 {[%clk 0:01:41.6]}
28... Nc2 {[%clk 0:01:29.3]} 29. Qc3 {[%clk 0:01:36.5]} 29... Nxe1 {[%clk
0:01:30.3]} 30. Rxe1 {[%clk 0:01:37.3]} 30... Qd4 {[%clk 0:01:17.8]} 31. Qc7
{[%clk 0:01:35.3]} 31... Rf8 {[%clk 0:01:05.1]} 32. b6 {[%clk 0:01:35.7]} 32...
f4 {[%clk 0:01:05.6]} 33. b7 {[%clk 0:01:05.8]} 33... e3 {[%clk 0:01:05.6]} 34.
fxe3 {[%clk 0:01:04.9]} 34... Qb2 {[%clk 0:00:57.9]} 35. Bc4 {[%clk 0:00:58.7]}
35... Qxg2# {[%clk 0:00:54.1]} 0-1

[Event "*** Titled Tuesday 3|2 Blitz (Early)"]
[Site "Chess.com"]
[Date "2017.01.03"]
[Round "3"]
[White "danir29"]
[Black "FairChess_on_YouTube"]
[Result "0-1"]
[WhiteElo "2458"]
[BlackElo "2772"]
[TimeControl "180+2"]
[EndTime "11:34:02 PST"]
[Termination "FairChess_on_YouTube won by resignation"]

1. d4 {[%clk 0:03:02]} 1... Nf6 {[%clk 0:02:59.8]} 2. Bf4 {[%clk 0:03:02.1]}
2... c5 {[%clk 0:02:58.7]} 3. d5 {[%clk 0:03:02.4]} 3... d6 {[%clk 0:02:54.9]}
4. Nc3 {[%clk 0:03:02.2]} 4... g6 {[%clk 0:02:51]} 5. e4 {[%clk 0:03:00.5]} 5...
Bg7 {[%clk 0:02:52.1]} 6. Nf3 {[%clk 0:03:00.4]} 6... O-O {[%clk 0:02:51.5]} 7.
Be2 {[%clk 0:03:01.4]} 7... b5 {[%clk 0:02:50.4]} 8. Nxb5 {[%clk 0:02:33.3]}
8... Nxe4 {[%clk 0:02:50.2]} 9. c3 {[%clk 0:02:20.7]} 9... Qa5 {[%clk
0:02:47.7]} 10. O-O {[%clk 0:02:09.6]} 10... a6 {[%clk 0:02:47.2]} 11. Na3
{[%clk 0:01:57.9]} 11... Nxc3 {[%clk 0:02:48]} 12. Qd2 {[%clk 0:01:33.2]} 12...
Nxe2+ {[%clk 0:02:39.5]} 13. Qxe2 {[%clk 0:01:35.1]} 13... Ra7 {[%clk
0:02:29.8]} 14. Nc4 {[%clk 0:01:35.4]} 14... Qd8 {[%clk 0:02:23.8]} 15. Rfe1
{[%clk 0:01:33.7]} 15... a5 {[%clk 0:02:20.9]} 16. Bg5 {[%clk 0:01:31.3]} 16...
Ba6 {[%clk 0:02:20.7]} 17. Rac1 {[%clk 0:01:30.1]} 17... Re8 {[%clk 0:02:17.8]}
18. Qe4 {[%clk 0:01:27.1]} 18... h6 {[%clk 0:02:07.7]} 19. Bd2 {[%clk
0:01:23.8]} 19... Bxc4 {[%clk 0:02:05.6]} 20. Rxc4 {[%clk 0:01:20.7]} 20... Nd7
{[%clk 0:02:06.6]} 21. Qh4 {[%clk 0:01:18.8]} 21... e5 {[%clk 0:01:59.9]} 22.
dxe6 {[%clk 0:00:51.9]} 22... Qxh4 {[%clk 0:01:56.3]} 23. exf7+ {[%clk
0:00:47.7]} 23... Kxf7 {[%clk 0:01:58.2]} 24. Rxh4 {[%clk 0:00:48.3]} 24...
Rxe1+ {[%clk 0:01:57.4]} 25. Nxe1 {[%clk 0:00:50.2]} 25... Bxb2 {[%clk
0:01:56.8]} 26. Rxh6 {[%clk 0:00:51.1]} 26... Bg7 {[%clk 0:01:55.9]} 27. Rh3
{[%clk 0:00:49.1]} 27... d5 {[%clk 0:01:55.3]} 28. Kf1 {[%clk 0:00:47.6]} 28...
d4 {[%clk 0:01:50.4]} 29. Nf3 {[%clk 0:00:42.5]} 29... c4 {[%clk 0:01:45.5]} 30.
Ng5+ {[%clk 0:00:43.2]} 30... Kg8 {[%clk 0:01:45.1]} 31. Ke2 {[%clk 0:00:36.6]}
31... Nc5 {[%clk 0:01:41]} 32. Ra3 {[%clk 0:00:18.1]} 32... c3 {[%clk 0:01:40]}
33. Bf4 {[%clk 0:00:17.4]} 33... d3+ {[%clk 0:01:36]} 34. Kf3 {[%clk 0:00:17.3]}
34... d2 {[%clk 0:01:33]} 35. Ke2 {[%clk 0:00:17.8]} 35... Rd7 {[%clk
0:01:33.5]} 0-1

[Event "*** Titled Tuesday 3|2 Blitz (Early)"]
[Site "Chess.com"]
[Date "2017.01.03"]
[Round "3"]
[White "Lupul_Cenusiu"]
[Black "OparinGrigoriy"]
[Result "0-1"]
[WhiteElo "2466"]
[BlackElo "2581"]
[TimeControl "180+2"]
[EndTime "11:34:05 PST"]
[Termination "OparinGrigoriy won by resignation"]

1. d4 {[%clk 0:03:02]} 1... Nf6 {[%clk 0:03:00.7]} 2. c4 {[%clk 0:03:01.7]} 2...
e6 {[%clk 0:03:01.8]} 3. Nf3 {[%clk 0:03:01.7]} 3... b6 {[%clk 0:03:02.1]} 4. e3
{[%clk 0:03:01.9]} 4... Bb7 {[%clk 0:03:03.2]} 5. Bd3 {[%clk 0:03:03]} 5... d5
{[%clk 0:03:04.7]} 6. cxd5 {[%clk 0:03:02.2]} 6... exd5 {[%clk 0:03:04.5]} 7.
O-O {[%clk 0:03:00.9]} 7... Bd6 {[%clk 0:03:06.2]} 8. b3 {[%clk 0:03:02.2]} 8...
O-O {[%clk 0:03:07.6]} 9. Ba3 {[%clk 0:03:03]} 9... c5 {[%clk 0:03:06.6]} 10.
Nc3 {[%clk 0:03:02]} 10... Nbd7 {[%clk 0:03:06.8]} 11. Rc1 {[%clk 0:03:01.3]}
11... a6 {[%clk 0:03:07.5]} 12. Na4 {[%clk 0:03:01.5]} 12... Qe7 {[%clk
0:03:08.5]} 13. h3 {[%clk 0:02:56.8]} 13... c4 {[%clk 0:03:08.2]} 14. Bxd6
{[%clk 0:02:55.7]} 14... Qxd6 {[%clk 0:03:10.1]} 15. Bf5 {[%clk 0:02:36.3]}
15... b5 {[%clk 0:03:10]} 16. Nc3 {[%clk 0:02:34.9]} 16... b4 {[%clk 0:03:11.4]}
17. Na4 {[%clk 0:02:35.6]} 17... c3 {[%clk 0:03:12.8]} 18. Bd3 {[%clk
0:02:17.1]} 18... Bc6 {[%clk 0:03:11.8]} 19. a3 {[%clk 0:02:11.3]} 19... a5
{[%clk 0:03:11.4]} 20. Qc2 {[%clk 0:02:03.7]} 20... Rfc8 {[%clk 0:03:09.4]} 21.
Ra1 {[%clk 0:02:02.5]} 21... Bxa4 {[%clk 0:03:09.7]} 22. bxa4 {[%clk 0:02:03.3]}
22... Rab8 {[%clk 0:03:11.6]} 23. Rfb1 {[%clk 0:02:02.9]} 23... Ne4 {[%clk
0:03:04]} 24. Bb5 {[%clk 0:02:03.3]} 24... Nb6 {[%clk 0:02:48]} 25. axb4 {[%clk
0:02:03.6]} 25... axb4 {[%clk 0:02:49]} 26. a5 {[%clk 0:01:59.4]} 26... Nc4
{[%clk 0:02:49.5]} 27. Bxc4 {[%clk 0:02:00.1]} 27... Rxc4 {[%clk 0:02:49.2]} 28.
a6 {[%clk 0:01:59]} 28... f6 {[%clk 0:02:46.2]} 29. Ra4 {[%clk 0:01:52.7]} 29...
Ra8 {[%clk 0:02:45.7]} 30. a7 {[%clk 0:01:49.5]} 30... Qb6 {[%clk 0:02:44.3]}
31. Qd3 {[%clk 0:01:13.7]} 31... Rxa7 {[%clk 0:02:42.5]} 32. Rxa7 {[%clk
0:01:13.2]} 32... Qxa7 {[%clk 0:02:44.1]} 33. Ne1 {[%clk 0:01:12.9]} 33... Qa2
{[%clk 0:02:42.1]} 34. f3 {[%clk 0:01:12.9]} 34... Nd2 {[%clk 0:02:36]} 35. Rc1
{[%clk 0:01:12.9]} 35... b3 {[%clk 0:02:22.2]} 36. Qf5 {[%clk 0:01:13.7]} 36...
Qa8 {[%clk 0:01:58.9]} 37. Qe6+ {[%clk 0:01:11.3]} 37... Kh8 {[%clk 0:02:00.1]}
38. Ra1 {[%clk 0:01:11.9]} 38... Qg8 {[%clk 0:02:00.9]} 39. Qb6 {[%clk
0:01:03.4]} 39... b2 {[%clk 0:02:01.9]} 40. Rd1 {[%clk 0:01:03.8]} 40... c2
{[%clk 0:01:52.7]} 41. Nxc2 {[%clk 0:01:03.1]} 41... Rxc2 {[%clk 0:01:54.6]} 42.
Kh2 {[%clk 0:00:56.9]} 42... b1=Q {[%clk 0:01:55.6]} 43. Rxb1 {[%clk 0:00:57.5]}
43... Nxb1 {[%clk 0:01:57.5]} 44. Qxb1 {[%clk 0:00:58.4]} 44... Qc8 {[%clk
0:01:58.7]} 45. f4 {[%clk 0:00:58.3]} 45... h6 {[%clk 0:01:57.9]} 46. Qb5 {[%clk
0:00:58.5]} 46... Rc3 {[%clk 0:01:59.1]} 47. Qxd5 {[%clk 0:00:58.3]} 47... Rxe3
{[%clk 0:02:00.6]} 48. Qd6 {[%clk 0:00:57.8]} 48... Qe6 {[%clk 0:02:01.8]} 49.
Qb8+ {[%clk 0:00:57.8]} 49... Kh7 {[%clk 0:02:03.4]} 0-1

[Event "*** Titled Tuesday 3|2 Blitz (Early)"]
[Site "Chess.com"]
[Date "2017.01.03"]
[Round "3"]
[White "cassoulet"]
[Black "Krutoy123"]
[Result "0-1"]
[WhiteElo "2314"]
[BlackElo "2423"]
[TimeControl "180+2"]
[EndTime "11:34:07 PST"]
[Termination "Krutoy123 won by checkmate"]

1. e4 {[%clk 0:03:02]} 1... c5 {[%clk 0:03:00.7]} 2. Nf3 {[%clk 0:03:03]} 2...
e6 {[%clk 0:03:00.7]} 3. Nc3 {[%clk 0:03:00.9]} 3... a6 {[%clk 0:02:59.9]} 4. d4
{[%clk 0:03:01]} 4... cxd4 {[%clk 0:02:59.5]} 5. Nxd4 {[%clk 0:03:02.9]} 5... b5
{[%clk 0:02:59.5]} 6. g3 {[%clk 0:03:03.2]} 6... Nf6 {[%clk 0:02:49.9]} 7. Bg2
{[%clk 0:03:03.9]} 7... Bb7 {[%clk 0:02:49]} 8. a3 {[%clk 0:03:02.6]} 8... d6
{[%clk 0:02:44]} 9. O-O {[%clk 0:02:58.5]} 9... Nbd7 {[%clk 0:02:45.1]} 10. Qe2
{[%clk 0:02:58.7]} 10... Be7 {[%clk 0:02:35]} 11. Be3 {[%clk 0:02:50.9]} 11...
Ne5 {[%clk 0:02:32]} 12. Rad1 {[%clk 0:02:49.3]} 12... Qc7 {[%clk 0:02:28.7]}
13. f4 {[%clk 0:02:47.1]} 13... Nc4 {[%clk 0:02:26.2]} 14. Bc1 {[%clk
0:02:44.3]} 14... O-O {[%clk 0:02:27.2]} 15. Rd3 {[%clk 0:02:39.2]} 15... d5
{[%clk 0:02:21.9]} 16. e5 {[%clk 0:02:37]} 16... Nd7 {[%clk 0:02:22.8]} 17. g4
{[%clk 0:02:21.9]} 17... Bc5 {[%clk 0:02:19.9]} 18. Kh1 {[%clk 0:02:22]} 18...
Bxd4 {[%clk 0:02:12.9]} 19. Rxd4 {[%clk 0:02:22.2]} 19... Nxa3 {[%clk
0:02:13.1]} 20. f5 {[%clk 0:02:20.1]} 20... Nc4 {[%clk 0:02:05.4]} 21. f6 {[%clk
0:02:01.5]} 21... Qxe5 {[%clk 0:02:03.4]} 22. fxg7 {[%clk 0:02:02.1]} 22... Qxd4
{[%clk 0:01:53.6]} 23. gxf8=Q+ {[%clk 0:02:01.1]} 23... Rxf8 {[%clk 0:01:53.9]}
24. Bh6 {[%clk 0:02:01.7]} 24... Rc8 {[%clk 0:01:48.6]} 25. Nd1 {[%clk
0:01:49.6]} 25... Qb6 {[%clk 0:01:43]} 26. c3 {[%clk 0:01:34.5]} 26... b4 {[%clk
0:01:41]} 27. Qf3 {[%clk 0:01:27.7]} 27... Nce5 {[%clk 0:01:38.2]} 28. Qf4
{[%clk 0:01:28.6]} 28... bxc3 {[%clk 0:01:33.6]} 29. bxc3 {[%clk 0:01:29.3]}
29... a5 {[%clk 0:01:34.1]} 30. Nf2 {[%clk 0:01:22.5]} 30... Rxc3 {[%clk
0:01:29.9]} 31. Qg5+ {[%clk 0:01:14.1]} 31... Ng6 {[%clk 0:01:30.7]} 32. Nh3
{[%clk 0:01:15.5]} 32... d4 {[%clk 0:01:21.4]} 33. Nf4 {[%clk 0:01:14.6]} 33...
Rc5 {[%clk 0:01:16.7]} 34. Nxg6 {[%clk 0:00:50.1]} 34... Rxg5 {[%clk 0:01:15.9]}
35. Ne7+ {[%clk 0:00:50.4]} 35... Kh8 {[%clk 0:01:16.2]} 36. Bxg5 {[%clk
0:00:52.3]} 36... Qb5 {[%clk 0:01:09.7]} 37. h4 {[%clk 0:00:45.7]} 37... Qxf1+
{[%clk 0:01:10.1]} 38. Kh2 {[%clk 0:00:45.7]} 38... Qxg2# {[%clk 0:01:11]} 0-1

[Event "*** Titled Tuesday 3|2 Blitz (Early)"]
[Site "Chess.com"]
[Date "2017.01.03"]
[Round "3"]
[White "Aygehovit1992"]
[Black "FrankieJay"]
[Result "1-0"]
[WhiteElo "2449"]
[BlackElo "2289"]
[TimeControl "180+2"]
[EndTime "11:34:19 PST"]
[Termination "Aygehovit1992 won by resignation"]

1. e4 {[%clk 0:03:02]} 1... c5 {[%clk 0:02:59.4]} 2. Nf3 {[%clk 0:03:02.5]} 2...
d6 {[%clk 0:02:59.6]} 3. d4 {[%clk 0:03:03.6]} 3... cxd4 {[%clk 0:03:00.3]} 4.
Nxd4 {[%clk 0:03:05.3]} 4... Nf6 {[%clk 0:03:01.7]} 5. Nc3 {[%clk 0:03:07]} 5...
a6 {[%clk 0:03:02.8]} 6. Bg5 {[%clk 0:03:08]} 6... Nbd7 {[%clk 0:03:02.1]} 7.
Bc4 {[%clk 0:03:04]} 7... b5 {[%clk 0:02:41.4]} 8. Bd5 {[%clk 0:02:18.4]} 8...
Nxd5 {[%clk 0:02:40.9]} 9. exd5 {[%clk 0:02:19.4]} 9... Bb7 {[%clk 0:02:33.8]}
10. O-O {[%clk 0:02:01.6]} 10... Qb6 {[%clk 0:01:41]} 11. Re1 {[%clk 0:01:48.8]}
11... Nf6 {[%clk 0:01:41.9]} 12. Bxf6 {[%clk 0:01:49.2]} 12... gxf6 {[%clk
0:01:43.8]} 13. Ne4 {[%clk 0:01:44.4]} 13... O-O-O {[%clk 0:01:41.9]} 14. a4
{[%clk 0:01:43.1]} 14... b4 {[%clk 0:01:31.2]} 15. a5 {[%clk 0:01:40.8]} 15...
Qa7 {[%clk 0:01:20.6]} 16. c3 {[%clk 0:01:39.8]} 16... Bxd5 {[%clk 0:01:11.8]}
17. cxb4 {[%clk 0:01:38.9]} 17... Qb7 {[%clk 0:01:07.3]} 18. Nc3 {[%clk
0:01:21.6]} 18... Bxg2 {[%clk 0:01:01.3]} 19. Qg4+ {[%clk 0:01:19.7]} 19... e6
{[%clk 0:00:44]} 20. Qxg2 {[%clk 0:01:15.7]} 20... d5 {[%clk 0:00:45.5]} 21. b5
{[%clk 0:01:13.3]} 21... Bc5 {[%clk 0:00:43.6]} 22. bxa6 {[%clk 0:01:04.1]}
22... Qxa6 {[%clk 0:00:38.8]} 23. Nde2 {[%clk 0:01:04.8]} 23... Rhg8 {[%clk
0:00:37.7]} 24. Ng3 {[%clk 0:01:05.6]} 24... f5 {[%clk 0:00:37.7]} 25. Qf1
{[%clk 0:01:00.1]} 25... Qa7 {[%clk 0:00:30.3]} 26. Nb5 {[%clk 0:00:56.8]} 26...
Qb8 {[%clk 0:00:28.7]} 27. Rec1 {[%clk 0:00:50.9]} 27... Rxg3+ {[%clk
0:00:28.4]} 28. hxg3 {[%clk 0:00:43.1]} 28... Qxg3+ {[%clk 0:00:27.6]} 29. Qg2
{[%clk 0:00:44.3]} 1-0

[Event "*** Titled Tuesday 3|2 Blitz (Early)"]
[Site "Chess.com"]
[Date "2017.01.03"]
[Round "3"]
[White "Saitama_Hero"]
[Black "jup1978"]
[Result "0-1"]
[WhiteElo "2162"]
[BlackElo "2240"]
[TimeControl "180+2"]
[EndTime "11:34:42 PST"]
[Termination "jup1978 won by resignation"]

1. Nf3 {[%clk 0:03:02]} 1... d5 {[%clk 0:02:56.1]} 2. g3 {[%clk 0:03:03.2]} 2...
c6 {[%clk 0:02:56.6]} 3. Bg2 {[%clk 0:03:05.1]} 3... Bg4 {[%clk 0:02:57.5]} 4.
O-O {[%clk 0:03:07]} 4... Nd7 {[%clk 0:02:57.6]} 5. c4 {[%clk 0:03:06.5]} 5...
Bxf3 {[%clk 0:02:57.5]} 6. Bxf3 {[%clk 0:03:05.8]} 6... e6 {[%clk 0:02:59.1]} 7.
cxd5 {[%clk 0:02:56.6]} 7... exd5 {[%clk 0:02:58.1]} 8. Nc3 {[%clk 0:02:58.5]}
8... Ngf6 {[%clk 0:02:59]} 9. d3 {[%clk 0:02:51.2]} 9... Bd6 {[%clk 0:02:58.4]}
10. e4 {[%clk 0:02:52.3]} 10... dxe4 {[%clk 0:02:53.9]} 11. dxe4 {[%clk
0:02:52.6]} 11... Ne5 {[%clk 0:02:54.8]} 12. Bg2 {[%clk 0:02:51.4]} 12... O-O
{[%clk 0:02:54.5]} 13. h3 {[%clk 0:02:36.3]} 13... Bc7 {[%clk 0:02:51.6]} 14.
Qb3 {[%clk 0:02:34.9]} 14... Bb6 {[%clk 0:02:45]} 15. Kh2 {[%clk 0:02:34.8]}
15... Ned7 {[%clk 0:02:38.7]} 16. f4 {[%clk 0:02:02.9]} 16... Nc5 {[%clk
0:02:36.8]} 17. Qc4 {[%clk 0:02:02.9]} 17... Qd3 {[%clk 0:02:35.4]} 18. Qxd3
{[%clk 0:02:02.5]} 18... Nxd3 {[%clk 0:02:37.3]} 19. e5 {[%clk 0:02:03.4]} 19...
Nxc1 {[%clk 0:02:32.3]} 20. Raxc1 {[%clk 0:02:05.3]} 20... Nd7 {[%clk 0:02:32]}
21. Ne4 {[%clk 0:02:03.2]} 21... Rfd8 {[%clk 0:02:26.1]} 22. Rfd1 {[%clk
0:01:55]} 22... Nf8 {[%clk 0:02:16.5]} 23. Nd6 {[%clk 0:01:53.9]} 23... Rab8
{[%clk 0:02:15.1]} 24. Bf1 {[%clk 0:01:46.8]} 24... Bc7 {[%clk 0:02:14]} 25. Nf5
{[%clk 0:01:44.1]} 25... Ne6 {[%clk 0:02:09.3]} 26. Bc4 {[%clk 0:01:42.3]} 26...
Kf8 {[%clk 0:02:06.3]} 27. Kg2 {[%clk 0:01:37]} 27... g6 {[%clk 0:02:02.8]} 28.
Bxe6 {[%clk 0:01:28.9]} 28... fxe6 {[%clk 0:02:02.2]} 29. Ne3 {[%clk 0:01:26.1]}
29... Rxd1 {[%clk 0:01:59.4]} 30. Rxd1 {[%clk 0:01:25.1]} 30... Rd8 {[%clk
0:02:01.3]} 31. Rxd8+ {[%clk 0:01:02.6]} 31... Bxd8 {[%clk 0:02:03.2]} 32. Kf3
{[%clk 0:01:02.7]} 32... Ke7 {[%clk 0:02:02.2]} 33. Ke4 {[%clk 0:01:02.6]} 33...
b5 {[%clk 0:02:01.1]} 34. Ng4 {[%clk 0:00:52.9]} 34... h5 {[%clk 0:01:56.6]} 35.
Nf2 {[%clk 0:00:50.8]} 35... a5 {[%clk 0:01:54.5]} 36. Nd3 {[%clk 0:00:50.9]}
36... Bb6 {[%clk 0:01:54.5]} 37. b3 {[%clk 0:00:50.8]} 37... c5 {[%clk
0:01:46.4]} 38. a4 {[%clk 0:00:48.8]} 38... c4 {[%clk 0:01:43.7]} 39. bxc4
{[%clk 0:00:48.9]} 39... bxc4 {[%clk 0:01:45.2]} 40. Nb2 {[%clk 0:00:50.3]}
40... c3 {[%clk 0:01:45.6]} 41. Nd3 {[%clk 0:00:48]} 41... c2 {[%clk 0:01:45.3]}
42. g4 {[%clk 0:00:41.3]} 42... hxg4 {[%clk 0:01:45.3]} 43. hxg4 {[%clk
0:00:43.1]} 43... Bc5 {[%clk 0:01:41.7]} 44. f5 {[%clk 0:00:26.7]} 44... gxf5+
{[%clk 0:01:39.7]} 45. gxf5 {[%clk 0:00:28.6]} 45... exf5+ {[%clk 0:01:40.4]}
46. Kxf5 {[%clk 0:00:26.8]} 46... Ba3 {[%clk 0:01:41.2]} 0-1

[Event "*** Titled Tuesday 3|2 Blitz (Early)"]
[Site "Chess.com"]
[Date "2017.01.03"]
[Round "3"]
[White "Corpescador"]
[Black "Gabrielian_Artur"]
[Result "0-1"]
[WhiteElo "2443"]
[BlackElo "2672"]
[TimeControl "180+2"]
[EndTime "11:34:46 PST"]
[Termination "Gabrielian_Artur won on time"]

1. e4 {[%clk 0:03:02]} 1... c5 {[%clk 0:03:00.4]} 2. Nf3 {[%clk 0:03:01.8]} 2...
d6 {[%clk 0:03:01.8]} 3. d4 {[%clk 0:03:02.8]} 3... cxd4 {[%clk 0:03:03.2]} 4.
Nxd4 {[%clk 0:03:04.7]} 4... Nf6 {[%clk 0:03:04.6]} 5. Nc3 {[%clk 0:03:06]} 5...
a6 {[%clk 0:03:06.2]} 6. Be3 {[%clk 0:03:06.9]} 6... e5 {[%clk 0:03:05.5]} 7.
Nb3 {[%clk 0:03:07.6]} 7... Be6 {[%clk 0:03:06.9]} 8. f3 {[%clk 0:03:08.7]} 8...
Nbd7 {[%clk 0:03:07.2]} 9. Qd2 {[%clk 0:03:09.8]} 9... Be7 {[%clk 0:03:08.4]}
10. O-O-O {[%clk 0:03:11.1]} 10... O-O {[%clk 0:03:09.6]} 11. Kb1 {[%clk
0:03:12.5]} 11... b5 {[%clk 0:03:10.6]} 12. g4 {[%clk 0:03:13.4]} 12... b4
{[%clk 0:03:11.2]} 13. Ne2 {[%clk 0:03:14.6]} 13... a5 {[%clk 0:03:10]} 14. g5
{[%clk 0:03:15.9]} 14... Nh5 {[%clk 0:03:10.6]} 15. f4 {[%clk 0:03:11.6]} 15...
a4 {[%clk 0:03:05.1]} 16. Nbc1 {[%clk 0:03:10.6]} 16... exf4 {[%clk 0:02:53.7]}
17. Nxf4 {[%clk 0:03:11.2]} 17... Nxf4 {[%clk 0:02:54.4]} 18. Bxf4 {[%clk
0:03:11.7]} 18... Nc5 {[%clk 0:02:54.9]} 19. Bg2 {[%clk 0:02:54.8]} 19... b3
{[%clk 0:02:55.7]} 20. cxb3 {[%clk 0:02:08.8]} 20... axb3 {[%clk 0:02:53.7]} 21.
a3 {[%clk 0:02:09.9]} 21... Ra4 {[%clk 0:02:48.9]} 22. Rhe1 {[%clk 0:02:05.5]}
22... Rc4 {[%clk 0:02:38]} 23. Qe3 {[%clk 0:01:14.1]} 23... Rc2 {[%clk
0:02:14.1]} 24. Re2 {[%clk 0:00:55.8]} 24... Qc7 {[%clk 0:02:14.5]} 25. Nd3
{[%clk 0:00:20.4]} 25... Na4 {[%clk 0:02:00.7]} 26. Nb4 {[%clk 0:00:14.4]} 26...
Rxb2+ {[%clk 0:01:27.5]} 27. Rxb2 {[%clk 0:00:13.2]} 27... Nc3+ {[%clk
0:01:28.6]} 28. Ka1 {[%clk 0:00:05.9]} 28... Nxd1 {[%clk 0:01:29.3]} 29. Qd4
{[%clk 0:00:05.1]} 29... Nxb2 {[%clk 0:01:27.9]} 30. Kxb2 {[%clk 0:00:07]} 30...
Rc8 {[%clk 0:01:27.5]} 31. Bf1 {[%clk 0:00:05.4]} 31... Qa5 {[%clk 0:00:53.3]}
32. Bd3 {[%clk 0:00:05.3]} 32... Ra8 {[%clk 0:00:52.1]} 0-1

[Event "*** Titled Tuesday 3|2 Blitz (Early)"]
[Site "Chess.com"]
[Date "2017.01.03"]
[Round "3"]
[White "gumersindo"]
[Black "pastouche06"]
[Result "1/2-1/2"]
[WhiteElo "2346"]
[BlackElo "2343"]
[TimeControl "180+2"]
[EndTime "11:34:50 PST"]
[Termination "Game drawn by repetition"]

1. d4 {[%clk 0:03:02]} 1... Nf6 {[%clk 0:00:12.6]} 2. c4 {[%clk 0:03:01.1]} 2...
e6 {[%clk 0:00:13.7]} 3. Nc3 {[%clk 0:03:02.1]} 3... Bb4 {[%clk 0:00:15.1]} 4.
Qc2 {[%clk 0:03:03.7]} 4... b6 {[%clk 0:00:15.4]} 5. a3 {[%clk 0:03:05]} 5...
Bxc3+ {[%clk 0:00:15.8]} 6. Qxc3 {[%clk 0:03:06.9]} 6... O-O {[%clk 0:00:16.8]}
7. Bg5 {[%clk 0:03:05.3]} 7... Bb7 {[%clk 0:00:17.6]} 8. e3 {[%clk 0:03:05]}
8... h6 {[%clk 0:00:18.7]} 9. Bh4 {[%clk 0:03:05.3]} 9... d6 {[%clk 0:00:20.2]}
10. f3 {[%clk 0:03:05.1]} 10... Nbd7 {[%clk 0:00:21.3]} 11. Bd3 {[%clk
0:03:04.5]} 11... c5 {[%clk 0:00:21.5]} 12. Ne2 {[%clk 0:03:04.6]} 12... d5
{[%clk 0:00:13.7]} 13. b3 {[%clk 0:02:58.3]} 13... Rc8 {[%clk 0:00:13.4]} 14.
O-O {[%clk 0:02:55.6]} 14... Qc7 {[%clk 0:00:14.4]} 15. Rac1 {[%clk 0:02:50.4]}
15... Qb8 {[%clk 0:00:15.3]} 16. dxc5 {[%clk 0:02:47.3]} 16... Rxc5 {[%clk
0:00:17.2]} 17. b4 {[%clk 0:02:31.6]} 17... Rcc8 {[%clk 0:00:18]} 18. Qd2 {[%clk
0:02:31.9]} 18... Rfd8 {[%clk 0:00:16.8]} 19. cxd5 {[%clk 0:02:32.4]} 19... Bxd5
{[%clk 0:00:17]} 20. e4 {[%clk 0:02:33]} 20... Bb7 {[%clk 0:00:16.5]} 21. Rxc8
{[%clk 0:02:31.8]} 21... Rxc8 {[%clk 0:00:16.3]} 22. Bg3 {[%clk 0:02:30.7]}
22... Qa8 {[%clk 0:00:15.5]} 23. Rc1 {[%clk 0:02:29.8]} 23... Rxc1+ {[%clk
0:00:15.7]} 24. Qxc1 {[%clk 0:02:30.3]} 24... Qc8 {[%clk 0:00:17.4]} 25. Qxc8+
{[%clk 0:02:25.7]} 25... Bxc8 {[%clk 0:00:19.3]} 26. Nc3 {[%clk 0:02:25.4]}
26... a6 {[%clk 0:00:17.1]} 27. Bc7 {[%clk 0:02:23.9]} 27... Kf8 {[%clk
0:00:16.9]} 28. Na4 {[%clk 0:02:18.3]} 28... b5 {[%clk 0:00:17.1]} 29. Nc3
{[%clk 0:02:18.4]} 29... Ke7 {[%clk 0:00:17.6]} 30. Kf2 {[%clk 0:02:18.5]} 30...
Ne8 {[%clk 0:00:17.4]} 31. Bf4 {[%clk 0:02:18.9]} 31... Nd6 {[%clk 0:00:15.1]}
32. Ke3 {[%clk 0:02:06.4]} 32... Nb6 {[%clk 0:00:15.3]} 33. Bxd6+ {[%clk
0:02:03.9]} 33... Kxd6 {[%clk 0:00:16]} 34. f4 {[%clk 0:02:05.4]} 34... e5
{[%clk 0:00:16.5]} 35. g3 {[%clk 0:02:02.1]} 35... Be6 {[%clk 0:00:17]} 36. Ne2
{[%clk 0:01:54]} 36... Bc4 {[%clk 0:00:17.8]} 37. fxe5+ {[%clk 0:01:44.2]} 37...
Kxe5 {[%clk 0:00:17.9]} 38. Nf4 {[%clk 0:01:45.2]} 38... g5 {[%clk 0:00:16.1]}
39. Ne2 {[%clk 0:01:33.8]} 39... Bxd3 {[%clk 0:00:15.9]} 40. Kxd3 {[%clk
0:01:35.3]} 40... Nc4 {[%clk 0:00:17.7]} 41. Nd4 {[%clk 0:01:34.3]} 41... Nb2+
{[%clk 0:00:16.8]} 42. Ke3 {[%clk 0:01:33.8]} 42... Nc4+ {[%clk 0:00:17.2]} 43.
Kd3 {[%clk 0:01:34.7]} 43... Nb2+ {[%clk 0:00:17]} 44. Ke3 {[%clk 0:01:35.7]}
44... Nc4+ {[%clk 0:00:18.3]} 45. Kd3 {[%clk 0:01:35.5]} 1/2-1/2